fUST/lending_fUST_20250521
["ID","MTS","AMOUNT","RATE_DAILY","PERIOD"]
[361752471,1747758635316,-430.0,0.00016712,2]
[361752472,1747758635326,-430.0,0.00016712,2]
[361752473,1747758635336,-430.0,0.00016712,2]
[361752474,1747758635347,-430.0,0.00016712,2]
[361752475,1747758635357,-430.0,0.00016712,2]
[361752476,1747758635369,-430.0,0.00016712,2]
[361752477,1747758635379,-430.0,0.00016712,2]
[361752478,1747758635389,-430.0,0.00016712,2]
[361752479,1747758635400,-430.0,0.00016712,2]
[361752480,1747758635411,-430.0,0.00016712,2]
[361752481,1747758635421,-430.0,0.00016712,2]
[361752482,1747758635431,-430.0,0.00016712,2]
[361752483,1747758635442,-430.0,0.00016712,2]
[361752484,1747758635453,-430.0,0.00016712,2]
[361752485,1747758635463,-430.0,0.00016712,2]
[361752486,1747758635473,-640.85,0.00016712,2]
[361752487,1747758635483,-430.0,0.00016712,2]
[361752488,1747758635493,-430.0,0.00016712,2]
[361752489,1747758635502,-430.0,0.00016712,2]
[361752490,1747758635512,-430.0,0.00016712,2]
[361752491,1747758635523,-430.0,0.00016712,2]
[361752492,1747758635532,-430.0,0.00016712,2]
[361752493,1747758635542,-430.0,0.00016712,2]
[361752494,1747758635553,-430.0,0.00016712,2]
[361752495,1747758635563,-430.0,0.00016712,2]
[361752496,1747758635573,-845.21,0.00016712,2]
[361752497,1747758635583,-430.0,0.00016712,2]
[361752498,1747758635593,-430.0,0.00016712,2]
[361752499,1747758635603,-430.0,0.00016712,2]
[361752500,1747758635617,-430.0,0.00016712,2]
[361752501,1747758635628,-430.0,0.00016712,2]
[361752502,1747758635637,-430.0,0.00016712,2]
[361752503,1747758635646,-430.0,0.00016712,2]
[361752504,1747758635657,-225.47,0.00016712,2]
[361752505,1747758635667,-430.0,0.00016712,2]
[361752506,1747758635676,-430.0,0.00016712,2]
[361752507,1747758635687,-430.0,0.00016712,2]
[361752508,1747758635697,-430.0,0.00016712,2]
[361752509,1747758635708,-430.0,0.00016712,2]
[361752510,1747758635718,-430.0,0.00016712,2]
[361752511,1747758635727,-430.0,0.00016712,2]
[361752512,1747758635737,-430.0,0.00016712,2]
[361752513,1747758635748,-600.25,0.00016712,2]
[361752514,1747758635757,-177.77189404,0.00016714,2]
[361752515,1747758635767,-1877.40251036,0.00016729,2]
[361752516,1747758635777,-500.0,0.00016795,2]
[361752517,1747758635787,-153.43769218,0.000168,2]
[361752518,1747758635796,-500.0,0.00016861,2]
[361752519,1747758635806,-500.0,0.00016861,2]
[361752520,1747758635816,-160.0,0.00016919,2]
[361752521,1747758635826,-1826.04621223,0.00016934,2]
[361752522,1747758635835,-500.0,0.00016946,2]
[361752523,1747758635845,-500.0,0.00016961,2]
[361752524,1747758635855,-500.0,0.00016961,2]
[361752525,1747758635864,-500.0,0.00016961,2]
[361752526,1747758635874,-405.5396218,0.00016973,2]
[361752527,1747758635883,-500.0,0.00016973,2]
[361752528,1747758635894,-500.0,0.00016973,2]
[361752529,1747758635903,-500.0,0.00016973,2]
[361752530,1747758635913,-502.50564121,0.00016973,2]
[361752531,1747758635924,-500.0,0.00016973,2]
[361752532,1747758635934,-500.0,0.00016984,2]
[361752533,1747758635945,-500.0,0.00016984,2]
[361752534,1747758635957,-500.0,0.00016984,2]
[361752535,1747758635968,-500.0,0.00016984,2]
[361752536,1747758635982,-500.0,0.00016984,2]
[361752537,1747758635993,-500.0,0.00016984,2]
[361752538,1747758636005,-500.0,0.00016984,2]
[361752539,1747758636015,-500.0,0.00016984,2]
[361752540,1747758636027,-459.25052676,0.00016984,2]
[361752541,1747758636037,-490.0,0.00016986,2]
[361752542,1747758636048,-430.0,0.00016986,2]
[361752543,1747758636058,-165.15,0.00016986,2]
[361752544,1747758636067,-490.0,0.00016986,2]
[361752545,1747758636078,-490.0,0.00016986,2]
[361752546,1747758636088,-430.0,0.00016986,2]
[361752547,1747758636098,-490.0,0.00016986,2]
[361752548,1747758636109,-430.0,0.00016986,2]
[361752549,1747758636119,-430.0,0.00016986,2]
[361752550,1747758636131,-249.7066422,0.00016986,2]
[361752551,1747758636141,-490.0,0.00016986,2]
[361752552,1747758636152,-430.0,0.00016986,2]
[361752553,1747758636163,-430.0,0.00016986,2]
[361752554,1747758636176,-534.65,0.00016986,2]
[361752555,1747758636186,-490.0,0.00016986,2]
[361752556,1747758636196,-490.0,0.00016986,2]
[361752557,1747758636207,-430.0,0.00016986,2]
[361752558,1747758636219,-430.0,0.00016986,2]
[361752559,1747758636229,-430.0,0.00016986,2]
[361752560,1747758636238,-430.0,0.00016986,2]
[361752561,1747758636247,-430.0,0.00016986,2]
[361752562,1747758636256,-490.0,0.00016986,2]
[361752563,1747758636266,-490.0,0.00016986,2]
[361752564,1747758636277,-529.99,0.00016986,2]
[361752565,1747758636289,-246.06,0.00016986,2]
[361752566,1747758636299,-430.0,0.00016986,2]
[361752567,1747758636309,-430.0,0.00016986,2]
[361752568,1747758636319,-152.65,0.00016986,2]
[361752569,1747758636328,-430.0,0.00016986,2]
[361752570,1747758636338,-263.16,0.00016986,2]
[361752571,1747758636349,-430.0,0.00016986,2]
[361752572,1747758636360,-490.3,0.00016986,2]
[361752573,1747758636372,-430.0,0.00016986,2]
[361752574,1747758636384,-430.0,0.00016986,2]
[361752575,1747758636400,-430.0,0.00016986,2]
[361752576,1747758636410,-430.0,0.00016986,2]
[361752577,1747758636419,-430.0,0.00016986,2]
[361752578,1747758636430,-430.0,0.00016986,2]
[361752579,1747758636442,-430.0,0.00016986,2]
[361752580,1747758636452,-430.0,0.00016986,2]
[361752581,1747758636461,-430.0,0.00016986,2]
[361752582,1747758636473,-430.0,0.00016986,2]
[361752583,1747758636483,-430.0,0.00016986,2]
[361752584,1747758636493,-430.0,0.00016986,2]
[361752585,1747758636503,-430.0,0.00016986,2]
[361752586,1747758636512,-430.0,0.00016986,2]
[361752587,1747758636523,-430.0,0.00016986,2]
[361752588,1747758636533,-430.0,0.00016986,2]
[361752589,1747758636546,-430.0,0.00016986,2]
[361752590,1747758636556,-430.0,0.00016986,2]
[361752591,1747758636566,-430.0,0.00016986,2]
[361752592,1747758636575,-430.0,0.00016986,2]
[361752593,1747758636728,-430.0,0.00016986,2]
[361752594,1747758636740,-430.0,0.00016986,2]
[361752595,1747758636750,-430.0,0.00016986,2]
[361752596,1747758636760,-430.0,0.00016986,2]
[361752597,1747758636771,-430.0,0.00016986,2]
[361752598,1747758636780,-490.0,0.00016986,2]
[361752599,1747758636792,-490.0,0.00016986,2]
[361752600,1747758636801,-430.0,0.00016986,2]
[361752601,1747758636811,-430.0,0.00016986,2]
[361752602,1747758636822,-516.16,0.00016986,2]
[361752603,1747758636832,-430.0,0.00016986,2]
[361752604,1747758636841,-430.0,0.00016986,2]
[361752605,1747758636850,-430.0,0.00016986,2]
[361752606,1747758636860,-430.0,0.00016986,2]
[361752607,1747758636869,-578.89,0.00016986,2]
[361752608,1747758636879,-1189.35,0.00016986,2]
[361752609,1747758636888,-430.0,0.00016986,2]
[361752610,1747758636898,-620.8,0.00016986,2]
[361752611,1747758636908,-430.0,0.00016986,2]
[361752612,1747758636917,-430.0,0.00016986,2]
[361752613,1747758636926,-470.0,0.00016986,2]
[361752614,1747758636936,-490.0,0.00016986,2]
[361752615,1747758636945,-430.0,0.00016986,2]
[361752616,1747758636955,-430.0,0.00016986,2]
[361752617,1747758636967,-430.0,0.00016986,2]
[361752618,1747758636979,-430.0,0.00016986,2]
[361752619,1747758636991,-430.0,0.00016986,2]
[361752620,1747758637001,-430.0,0.00016986,2]
[361752621,1747758637013,-430.0,0.00016986,2]
[361752622,1747758637023,-430.0,0.00016986,2]
[361752623,1747758637033,-430.0,0.00016986,2]
[361752624,1747758637043,-430.0,0.00016986,2]
[361752625,1747758637053,-430.0,0.00016986,2]
[361752626,1747758637062,-490.0,0.00016986,2]
[361752627,1747758637071,-430.0,0.00016986,2]
[361752628,1747758637083,-640.85,0.00016986,2]
[361752629,1747758637094,-430.0,0.00016986,2]
[361752630,1747758637106,-430.0,0.00016986,2]
[361752631,1747758637117,-430.0,0.00016986,2]
[361752632,1747758637127,-430.0,0.00016986,2]
[361752633,1747758637138,-430.0,0.00016986,2]
[361752634,1747758637148,-430.0,0.00016986,2]
[361752635,1747758637158,-430.0,0.00016986,2]
[361752636,1747758637169,-430.0,0.00016986,2]
[361752637,1747758637180,-430.0,0.00016986,2]
[361752638,1747758637190,-845.21,0.00016986,2]
[361752639,1747758637201,-430.0,0.00016986,2]
[361752640,1747758637210,-445.76,0.00016986,2]
[361752641,1747758637220,-430.0,0.00016986,2]
[361752642,1747758637231,-430.0,0.00016986,2]
[361752643,1747758637241,-430.0,0.00016986,2]
[361752644,1747758637251,-430.0,0.00016986,2]
[361752645,1747758637262,-430.0,0.00016986,2]
[361752646,1747758637271,-430.0,0.00016986,2]
[361752647,1747758637281,-430.0,0.00016986,2]
[361752648,1747758637294,-430.0,0.00016986,2]
[361752649,1747758637303,-430.0,0.00016986,2]
[361752650,1747758637313,-430.0,0.00016986,2]
[361752651,1747758637323,-430.0,0.00016986,2]
[361752652,1747758637333,-430.0,0.00016986,2]
[361752653,1747758637343,-490.0,0.00016986,2]
[361752654,1747758637353,-600.25,0.00016986,2]
[361752655,1747758637363,-91463.6982782,0.00017,2]
[361752656,1747758637372,-420.0,0.00017008,2]
[361752657,1747758637383,-5000.0,0.00017026,2]
[361752658,1747758637395,-500.0,0.0001703,2]
[361752659,1747758637405,-500.0,0.00017039,2]
[361752660,1747758637417,-516.92021092,0.00017045,2]
[361752661,1747758637427,-500.0,0.00017105,2]
[361752662,1747758637438,-500.0,0.00017105,2]
[361752663,1747758637449,-500.0,0.00017105,2]
[361752664,1747758637459,-1877.40251036,0.00017119,2]
[361752665,1747758637469,-464.71141754,0.0001726,2]
[361752667,1747758637479,-430.0,0.0001726,2]
[361752669,1747758637489,-430.0,0.0001726,2]
[361752671,1747758637499,-430.0,0.0001726,2]
[361752673,1747758637509,-510.0,0.0001726,2]
[361752675,1747758637519,-510.0,0.0001726,2]
[361752676,1747758637529,-510.0,0.0001726,2]
[361752678,1747758637539,-510.0,0.0001726,2]
[361752680,1747758637550,-544.11,0.0001726,2]
[361752682,1747758637559,-510.0,0.0001726,2]
[361752684,1747758637569,-510.0,0.0001726,2]
[361752686,1747758637579,-510.0,0.0001726,2]
[361752688,1747758637589,-430.0,0.0001726,2]
[361752690,1747758637599,-543.9,0.0001726,2]
[361752692,1747758637608,-430.0,0.0001726,2]
[361752694,1747758637622,-430.0,0.0001726,2]
[361752696,1747758637632,-511.28,0.0001726,2]
[361752697,1747758637642,-490.0,0.0001726,2]
[361752700,1747758637652,-430.0,0.0001726,2]
[361752702,1747758637662,-430.0,0.0001726,2]
[361752704,1747758637672,-430.0,0.0001726,2]
[361752706,1747758637681,-430.0,0.0001726,2]
[361752707,1747758637695,-510.0,0.0001726,2]
[361752709,1747758637705,-430.0,0.0001726,2]
[361752711,1747758637714,-430.0,0.0001726,2]
[361752713,1747758637724,-323.14,0.0001726,2]
[361752715,1747758637733,-430.0,0.0001726,2]
[361752717,1747758637743,-430.0,0.0001726,2]
[361752719,1747758637753,-430.0,0.0001726,2]
[361752721,1747758637762,-430.0,0.0001726,2]
[361752723,1747758637772,-510.0,0.0001726,2]
[361752725,1747758637782,-430.0,0.0001726,2]
[361752727,1747758637794,-430.0,0.0001726,2]
[361752729,1747758637803,-430.0,0.0001726,2]
[361752731,1747758637813,-430.0,0.0001726,2]
[361752733,1747758637822,-430.0,0.0001726,2]
[361752735,1747758637832,-430.0,0.0001726,2]
[361752737,1747758637842,-430.0,0.0001726,2]
[361752739,1747758637852,-430.0,0.0001726,2]
[361752741,1747758637862,-430.0,0.0001726,2]
[361752743,1747758637871,-430.0,0.0001726,2]
[361752745,1747758637881,-534.06867561,0.0001726,2]
[361752747,1747758637892,-430.0,0.0001726,2]
[361752749,1747758637901,-430.0,0.0001726,2]
[361752751,1747758637911,-430.0,0.0001726,2]
[361752753,1747758637920,-430.0,0.0001726,2]
[361752755,1747758637930,-1189.35,0.0001726,2]
[361752757,1747758637939,-430.0,0.0001726,2]
[361752759,1747758637948,-620.8,0.0001726,2]
[361752761,1747758637958,-430.0,0.0001726,2]
[361752763,1747758637968,-430.0,0.0001726,2]
[361752765,1747758637978,-227.74,0.0001726,2]
[361752767,1747758637990,-510.0,0.0001726,2]
[361752769,1747758637999,-510.0,0.0001726,2]
[361752771,1747758638010,-430.0,0.0001726,2]
[361752773,1747758638019,-430.0,0.0001726,2]
[361752775,1747758638029,-430.0,0.0001726,2]
[361752777,1747758638039,-510.0,0.0001726,2]
[361752779,1747758638049,-510.0,0.0001726,2]
[361752781,1747758638058,-430.0,0.0001726,2]
[361752783,1747758638069,-430.0,0.0001726,2]
[361752785,1747758638078,-510.0,0.0001726,2]
[361752787,1747758638087,-510.0,0.0001726,2]
[361752789,1747758638097,-640.85,0.0001726,2]
[361752791,1747758638107,-430.0,0.0001726,2]
[361752793,1747758638116,-430.0,0.0001726,2]
[361752795,1747758638125,-430.0,0.0001726,2]
[361752797,1747758638135,-510.0,0.0001726,2]
[361752799,1747758638144,-286.34,0.0001726,2]
[361752801,1747758638154,-490.0,0.0001726,2]
[361752803,1747758638164,-430.0,0.0001726,2]
[361752805,1747758638173,-430.0,0.0001726,2]
[361752807,1747758638183,-430.0,0.0001726,2]
[361752809,1747758638192,-845.21,0.0001726,2]
[361752811,1747758638202,-430.0,0.0001726,2]
[361752813,1747758638211,-430.0,0.0001726,2]
[361752814,1747758638225,-493.91,0.0001726,2]
[361752816,1747758638235,-430.0,0.0001726,2]
[361752818,1747758638244,-430.0,0.0001726,2]
[361752820,1747758638254,-430.0,0.0001726,2]
[361752822,1747758638263,-430.0,0.0001726,2]
[361752824,1747758638272,-430.0,0.0001726,2]
[361752826,1747758638281,-430.0,0.0001726,2]
[361752828,1747758638290,-430.0,0.0001726,2]
[361752830,1747758638300,-430.0,0.0001726,2]
[361752832,1747758638309,-490.0,0.0001726,2]
[361752834,1747758638319,-430.0,0.0001726,2]
[361752836,1747758638328,-600.25,0.0001726,2]
[361752838,1747758638338,-1826.04621223,0.00017279,2]
[361752841,1747758638352,-500.0,0.00017509,2]
[361752843,1747758638366,-500.0,0.00017509,2]
[361752845,1747758638379,-500.0,0.00017509,2]
[361752847,1747758638392,-1877.40251036,0.0001751,2]
[361752850,1747758638405,-1000.0,0.00017521,2]
[361752852,1747758638415,-1000.0,0.00017521,2]
[361752854,1747758638425,-430.0,0.00017534,2]
[361752856,1747758638437,-430.0,0.00017534,2]
[361752858,1747758638448,-530.0,0.00017534,2]
[361752860,1747758638459,-430.0,0.00017534,2]
[361752862,1747758638471,-520.33168477,0.00017534,2]
[361752864,1747758638483,-430.0,0.00017534,2]
[361752866,1747758638495,-430.0,0.00017534,2]
[361752869,1747758638508,-430.0,0.00017534,2]
[361752871,1747758638520,-430.0,0.00017534,2]
[361752873,1747758638532,-436.32,0.00017534,2]
[361752875,1747758638545,-430.0,0.00017534,2]
[361752878,1747758638557,-430.0,0.00017534,2]
[361752880,1747758638570,-480.38,0.00017534,2]
[361752882,1747758638582,-510.0,0.00017534,2]
[361752884,1747758638594,-430.0,0.00017534,2]
[361752886,1747758638606,-531.09,0.00017534,2]
[361752889,1747758638622,-177.16,0.00017534,2]
[361752891,1747758638633,-430.0,0.00017534,2]
[361752893,1747758638644,-430.0,0.00017534,2]
[361752895,1747758638656,-430.0,0.00017534,2]
[361752897,1747758638668,-430.0,0.00017534,2]
[361752899,1747758638681,-543.17,0.00017534,2]
[361752902,1747758638694,-430.0,0.00017534,2]
[361752904,1747758638707,-430.0,0.00017534,2]
[361752906,1747758638717,-430.0,0.00017534,2]
[361752908,1747758638727,-430.0,0.00017534,2]
[361752910,1747758638737,-430.0,0.00017534,2]
[361752912,1747758638748,-430.0,0.00017534,2]
[361752914,1747758638759,-430.0,0.00017534,2]
[361752916,1747758638771,-460.36,0.00017534,2]
[361752918,1747758638782,-1189.35,0.00017534,2]
[361752921,1747758638796,-430.0,0.00017534,2]
[361752923,1747758638809,-620.8,0.00017534,2]
[361752925,1747758638820,-430.0,0.00017534,2]
[361752927,1747758638831,-430.0,0.00017534,2]
[361752929,1747758638844,-389.31331712,0.00017534,2]
[361752932,1747758638857,-430.0,0.00017534,2]
[361752934,1747758638870,-430.0,0.00017534,2]
[361752936,1747758638882,-430.0,0.00017534,2]
[361752939,1747758638895,-640.85,0.00017534,2]
[361752941,1747758638907,-536.32,0.00017534,2]
[361752943,1747758638917,-430.0,0.00017534,2]
[361752945,1747758638927,-430.0,0.00017534,2]
[361752946,1747758638937,-430.0,0.00017534,2]
[361752947,1747758638948,-430.0,0.00017534,2]
[361752948,1747758638959,-430.0,0.00017534,2]
[361752949,1747758638972,-243.05,0.00017534,2]
[361752950,1747758638986,-845.21,0.00017534,2]
[361752951,1747758639000,-430.0,0.00017534,2]
[361752952,1747758639014,-430.0,0.00017534,2]
[361752953,1747758639026,-430.0,0.00017534,2]
[361752954,1747758639038,-430.0,0.00017534,2]
[361752955,1747758639049,-430.0,0.00017534,2]
[361752956,1747758639060,-430.0,0.00017534,2]
[361752957,1747758639072,-430.0,0.00017534,2]
[361752958,1747758639085,-430.0,0.00017534,2]
[361752959,1747758639098,-394.69,0.00017534,2]
[361752960,1747758639110,-430.0,0.00017534,2]
[361752961,1747758639123,-430.0,0.00017534,2]
[361752962,1747758639133,-600.25,0.00017534,2]
[361752963,1747758639145,-471.01424625,0.00017587,2]
[361752964,1747758639155,-2065.08624941,0.000176,2]
[361752965,1747758639169,-1826.04621223,0.00017624,2]
[361752966,1747758639182,-233.51839541,0.00017653,2]
[361752967,1747758639194,-894.64583333,0.0001768,2]
[361752968,1747758639206,-212.38718278,0.0001768,2]
[361752969,1747758639217,-817.08,0.00017798,3]
[361752970,1747758639229,-408.54,0.00017798,3]
[361752971,1747758639240,-430.0,0.00017808,2]
[361752972,1747758639253,-430.0,0.00017808,2]
[361752973,1747758639264,-430.0,0.00017808,2]
[361752974,1747758639275,-430.0,0.00017808,2]
[361752975,1747758639287,-430.0,0.00017808,2]
[361752976,1747758639298,-430.0,0.00017808,2]
[361752977,1747758639309,-430.0,0.00017808,2]
[361752978,1747758639320,-430.0,0.00017808,2]
[361752979,1747758639332,-430.0,0.00017808,2]
[361752981,1747758639344,-325.66,0.00017808,2]
[361752982,1747758639356,-430.0,0.00017808,2]
[361752983,1747758639367,-430.0,0.00017808,2]
[361752984,1747758639378,-430.0,0.00017808,2]
[361752985,1747758639391,-430.0,0.00017808,2]
[361752986,1747758639402,-381.50100681,0.00017808,2]
[361752987,1747758639414,-430.0,0.00017808,2]
[361752988,1747758639426,-430.0,0.00017808,2]
[361752989,1747758639438,-430.0,0.00017808,2]
[361752990,1747758639449,-430.0,0.00017808,2]
[361752991,1747758639461,-430.0,0.00017808,2]
[361752992,1747758639474,-430.0,0.00017808,2]
[361752993,1747758639485,-1189.35,0.00017808,2]
[361752994,1747758639496,-430.0,0.00017808,2]
[361752995,1747758639508,-620.8,0.00017808,2]
[361752996,1747758639521,-438.06,0.00017808,2]
[361752997,1747758639533,-430.0,0.00017808,2]
[361752998,1747758639545,-579.62,0.00017808,2]
[361752999,1747758639557,-430.0,0.00017808,2]
[361753000,1747758639570,-430.0,0.00017808,2]
[361753001,1747758639581,-640.85,0.00017808,2]
[361753002,1747758639593,-430.0,0.00017808,2]
[361753003,1747758639604,-430.0,0.00017808,2]
[361753004,1747758639618,-430.0,0.00017808,2]
[361753005,1747758639629,-261.82,0.00017808,2]
[361753006,1747758639641,-430.0,0.00017808,2]
[361753007,1747758639654,-845.21,0.00017808,2]
[361753010,1747758639667,-430.0,0.00017808,2]
[361753012,1747758639679,-430.0,0.00017808,2]
[361753014,1747758639693,-430.0,0.00017808,2]
[361753016,1747758639704,-430.0,0.00017808,2]
[361753018,1747758639715,-430.0,0.00017808,2]
[361753019,1747758639739,-430.0,0.00017808,2]
[361753020,1747758639757,-508.66,0.00017808,2]
[361753021,1747758639772,-430.0,0.00017808,2]
[361753022,1747758639786,-430.0,0.00017808,2]
[361753023,1747758639799,-430.0,0.00017808,2]
[361753024,1747758639813,-600.25,0.00017808,2]
[361753025,1747758639826,-1877.40251036,0.000179,2]
[361753026,1747758639840,-160.0,0.00017925,2]
[361753027,1747758639852,-160.0,0.00017925,2]
[361753028,1747758639866,-162.9289879,0.00017925,2]
[361753032,1747758639895,-263.07917187,0.00017925,2]
[361753037,1747758640115,-745.10319183,0.00017925,2]
[361753038,1747758640131,-2179.38833857,0.00017925,2]
[361753039,1747758640146,-1491.0,0.00017925,2]
[361753040,1747758640159,-434.81370448,0.00017925,2]
[361753079,1747758645874,-430.0,0.00016438,2]
[361753081,1747758645884,-430.0,0.00016438,2]
[361753083,1747758645894,-430.0,0.00016438,2]
[361753085,1747758645904,-214.73,0.00016712,2]
[361753087,1747758645913,-407.64,0.00016712,2]
[361753089,1747758645922,-2641.98565309,0.00017925,2]
[361753091,1747758645935,-349.75517299,0.00017925,2]
[361753099,1747758646473,-0.00456621,0.00017925,2]
[361753100,1747758805592,730.88,0.00027397,120]
[361753101,1747758871290,-5000.0,0.00013562,2]
[361753102,1747758881507,262.0,0.00013699,2]
[361753103,1747758940491,-1872.65464285,0.00013699,2]
[361753104,1747759026768,153.0,0.00013699,2]
[361753108,1747759366071,7999.0698,0.0002739,120]
[361753142,1747759831986,-262.671991,0.00013699,2]
[361753144,1747759831997,-300.0,0.00015526,2]
[361753145,1747759832006,-300.0,0.00015526,2]
[361753147,1747759832017,-300.0,0.00015526,2]
[361753149,1747759832033,-1200.0,0.00015526,2]
[361753151,1747759832043,-300.0,0.00015526,2]
[361753153,1747759832053,-17614.21778335,0.00015527,2]
[361753155,1747759832064,-7285.78221665,0.00015527,2]
[361753157,1747759832074,-205.8155272,0.00015849,2]
[361753159,1747759832084,-196.337772,0.00015849,2]
[361753161,1747759832093,-207.34016235,0.00015945,2]
[361753163,1747759832103,-160.0,0.00016437,2]
[361753165,1747759832112,-430.0,0.00016438,2]
[361753166,1747759832121,-430.0,0.00016438,2]
[361753168,1747759832130,-430.0,0.00016438,2]
[361753170,1747759832139,-430.0,0.00016438,2]
[361753172,1747759832148,-439.44,0.00016438,2]
[361753174,1747759832158,-430.0,0.00016438,2]
[361753176,1747759832167,-430.0,0.00016438,2]
[361753178,1747759832177,-430.0,0.00016438,2]
[361753180,1747759832186,-430.0,0.00016438,2]
[361753182,1747759832195,-430.0,0.00016438,2]
[361753184,1747759832205,-574.07,0.00016438,2]
[361753185,1747759832214,-430.0,0.00016438,2]
[361753186,1747759832224,-430.0,0.00016438,2]
[361753187,1747759832233,-430.0,0.00016438,2]
[361753188,1747759832242,-430.0,0.00016438,2]
[361753189,1747759832251,-430.0,0.00016438,2]
[361753190,1747759832260,-430.0,0.00016438,2]
[361753191,1747759832269,-914.91,0.00016438,2]
[361753192,1747759832278,-430.0,0.00016438,2]
[361753193,1747759832287,-430.0,0.00016438,2]
[361753194,1747759832296,-298.82,0.00016438,2]
[361753195,1747759832305,-323.51,0.00016438,2]
[361753196,1747759832315,-430.0,0.00016438,2]
[361753197,1747759832323,-430.0,0.00016438,2]
[361753198,1747759832332,-430.0,0.00016438,2]
[361753199,1747759832342,-430.0,0.00016438,2]
[361753200,1747759832351,-430.0,0.00016438,2]
[361753201,1747759832360,-430.0,0.00016438,2]
[361753202,1747759832369,-1334.72,0.00016438,2]
[361753203,1747759832380,-430.0,0.00016438,2]
[361753204,1747759832389,-430.0,0.00016438,2]
[361753205,1747759832400,-530.31,0.00016438,2]
[361753206,1747759832409,-430.0,0.00016438,2]
[361753207,1747759832418,-170.4,0.00016438,2]
[361753208,1747759832428,-533.26,0.00016438,2]
[361753209,1747759832437,-430.0,0.00016438,2]
[361753210,1747759832446,-430.0,0.00016438,2]
[361753211,1747759832455,-430.0,0.00016438,2]
[361753212,1747759832465,-430.0,0.00016438,2]
[361753213,1747759832474,-180.59,0.00016438,2]
[361753214,1747759832483,-527.16,0.00016438,2]
[361753215,1747759832492,-430.0,0.00016438,2]
[361753216,1747759832501,-430.0,0.00016438,2]
[361753217,1747759832511,-430.0,0.00016438,2]
[361753218,1747759832521,-430.0,0.00016438,2]
[361753219,1747759832531,-299.57,0.00016438,2]
[361753220,1747759832540,-504.96,0.00016438,2]
[361753221,1747759832549,-633.91,0.00016438,2]
[361753222,1747759832559,-430.0,0.00016438,2]
[361753223,1747759832570,-452.11,0.00016438,2]
[361753224,1747759832580,-234.74,0.00016438,2]
[361753225,1747759832591,-430.0,0.00016438,2]
[361753226,1747759832602,-430.0,0.00016438,2]
[361753227,1747759832613,-430.0,0.00016438,2]
[361753228,1747759832623,-430.0,0.00016438,2]
[361753229,1747759832633,-260.76,0.00016438,2]
[361753230,1747759832642,-430.0,0.00016438,2]
[361753231,1747759832651,-430.0,0.00016438,2]
[361753232,1747759832661,-430.0,0.00016712,2]
[361753233,1747759832673,-430.0,0.00016712,2]
[361753234,1747759832682,-430.0,0.00016712,2]